[Event "Titled Tuesday Blitz February 21 Early 2023"]
[White "Decoster, Frederic"]
[Black "TheKnightOfBosnia"]
[WhiteFideId "204269"]
[WhiteElo "2301"]
[BlackElo "2616"]
[Result "0-1"]
[Round "02"]
[TimeControl "180+2"]
[Date "2023.02.21"]
[WhiteClock "0:00:01"]
[BlackClock "0:00:20"]

1. e4 {[%clk 0:03:00]}  e5 {[%clk 0:02:59]} 2. Nf3 {[%clk 0:03:00]}  Nc6 {[%clk 0:03:00]} 3. Bb5 {[%clk 0:03:01]}  a6 {[%clk 0:03:00]} 4. Ba4 {[%clk 0:03:01]}  Nf6 {[%clk 0:03:00]} 5. O-O {[%clk 0:03:01]}  b5 {[%clk 0:03:01]} 6. Bb3 {[%clk 0:03:01]}  Bb7 {[%clk 0:03:02]} 7. Re1 {[%clk 0:02:58]}  Bc5 {[%clk 0:03:02]} 8. c3 {[%clk 0:02:57]}  d6 {[%clk 0:03:02]} 9. d4 {[%clk 0:02:55]}  Ba7 {[%clk 0:03:02]} 10. Bg5 {[%clk 0:02:24]}  h6 {[%clk 0:03:01]} 11. Bh4 {[%clk 0:02:24]}  O-O {[%clk 0:02:57]} 12. Qd3 {[%clk 0:02:19]}  Re8 {[%clk 0:02:29]} 13. Nbd2 {[%clk 0:02:05]}  g5 {[%clk 0:02:26]} 14. Bg3 {[%clk 0:01:45]}  Nh5 {[%clk 0:02:15]} 15. d5 {[%clk 0:01:28]}  Ne7 {[%clk 0:02:13]} 16. Nf1 {[%clk 0:01:28]}  Ng6 {[%clk 0:02:12]} 17. Ne3 {[%clk 0:01:27]}  Nhf4 {[%clk 0:02:08]} 18. Qd2 {[%clk 0:01:24]}  Bxe3 {[%clk 0:01:54]} 19. fxe3 {[%clk 0:01:21]}  Nh5 {[%clk 0:01:54]} 20. Bf2 {[%clk 0:01:21]}  g4 {[%clk 0:01:51]} 21. Kh1 {[%clk 0:01:04]}  gxf3 {[%clk 0:01:51]} 22. gxf3 {[%clk 0:01:05]}  Kh7 {[%clk 0:01:48]} 23. Rg1 {[%clk 0:01:00]}  Qf6 {[%clk 0:01:47]} 24. Qe2 {[%clk 0:01:00]}  Rg8 {[%clk 0:01:44]} 25. f4 {[%clk 0:00:58]}  Ng7 {[%clk 0:01:38]} 26. f5 {[%clk 0:00:54]}  Nf8 {[%clk 0:01:29]} 27. Rg4 {[%clk 0:00:49]}  Ne8 {[%clk 0:01:27]} 28. Bh4 {[%clk 0:00:48]}  Qh8 {[%clk 0:01:23]} 29. Rxg8 {[%clk 0:00:42]}  Qxg8 {[%clk 0:01:19]} 30. Rg1 {[%clk 0:00:43]}  Ng7 {[%clk 0:00:53]} 31. Bf6 {[%clk 0:00:41]}  Ng6 {[%clk 0:00:52]} 32. h4 {[%clk 0:00:20]}  Ne8 {[%clk 0:00:46]} 33. fxg6+ {[%clk 0:00:16]}  fxg6 {[%clk 0:00:45]} 34. Rf1 {[%clk 0:00:15]}  Nxf6 {[%clk 0:00:39]} 35. Rxf6 {[%clk 0:00:14]}  Rf8 {[%clk 0:00:39]} 36. Qf3 {[%clk 0:00:15]}  Kg7 {[%clk 0:00:39]} 37. Rxf8 {[%clk 0:00:14]}  Qxf8 {[%clk 0:00:39]} 38. Qh3 {[%clk 0:00:14]}  Bc8 {[%clk 0:00:38]} 39. Qg2 {[%clk 0:00:15]}  h5 {[%clk 0:00:36]} 40. Bd1 {[%clk 0:00:15]}  Qf6 {[%clk 0:00:36]} 41. Kg1 {[%clk 0:00:13]}  Kh6 {[%clk 0:00:31]} 42. Qg3 {[%clk 0:00:12]}  g5 {[%clk 0:00:30]} 43. hxg5+ {[%clk 0:00:11]}  Qxg5 {[%clk 0:00:31]} 44. Kh2 {[%clk 0:00:11]}  Qxg3+ {[%clk 0:00:28]} 45. Kxg3 {[%clk 0:00:12]}  Kg5 {[%clk 0:00:29]} 46. Be2 {[%clk 0:00:12]}  h4+ {[%clk 0:00:29]} 47. Kh2 {[%clk 0:00:12]}  Bg4 {[%clk 0:00:28]} 48. Bf1 {[%clk 0:00:12]}  Bf3 {[%clk 0:00:27]} 49. Bd3 {[%clk 0:00:12]}  Kg4 {[%clk 0:00:25]} 50. b4 {[%clk 0:00:12]}  Bd1 {[%clk 0:00:24]} 51. c4 {[%clk 0:00:11]}  Ba4 {[%clk 0:00:20]} 52. c5 {[%clk 0:00:11]}  Kf3 {[%clk 0:00:20]} 53. Kh3 {[%clk 0:00:01]}  Kxe3 {[%clk 0:00:20]} 0-1


[Site "https://www.chess.com"]

[Event "Titled Tuesday Blitz February 21 Early 2023"]
[White "Tan, Jun Ying"]
[Black "Bongo Akanga Ndjila, Barthelemy"]
[WhiteFideId "5710413"]
[BlackFideId "10609431"]
[WhiteElo "2307"]
[BlackElo "1824"]
[Result "1-0"]
[Round "02"]
[TimeControl "180+2"]
[Date "2023.02.21"]
[WhiteClock "0:00:12"]
[BlackClock "0:00:15"]

1. d4 {[%clk 0:03:00]}  d5 {[%clk 0:02:59]} 2. c4 {[%clk 0:03:01]}  e6 {[%clk 0:02:54]} 3. Nc3 {[%clk 0:03:00]}  a6 {[%clk 0:02:53]} 4. cxd5 {[%clk 0:02:56]}  exd5 {[%clk 0:02:54]} 5. Nf3 {[%clk 0:02:56]}  Nf6 {[%clk 0:02:53]} 6. Bg5 {[%clk 0:02:56]}  Be6 {[%clk 0:02:53]} 7. Bxf6 {[%clk 0:02:56]}  Qxf6 {[%clk 0:02:51]} 8. Qb3 {[%clk 0:02:57]}  Nd7 {[%clk 0:02:42]} 9. g3 {[%clk 0:02:32]}  b5 {[%clk 0:02:38]} 10. h4 {[%clk 0:02:24]}  c6 {[%clk 0:02:37]} 11. Bg2 {[%clk 0:02:02]}  Bd6 {[%clk 0:02:37]} 12. O-O {[%clk 0:02:00]}  O-O {[%clk 0:02:37]} 13. e3 {[%clk 0:01:55]}  Nb6 {[%clk 0:02:36]} 14. Ng5 {[%clk 0:01:54]}  Bf5 {[%clk 0:02:24]} 15. Qd1 {[%clk 0:01:45]}  Nc4 {[%clk 0:02:24]} 16. b3 {[%clk 0:01:43]}  Na3 {[%clk 0:02:19]} 17. Rc1 {[%clk 0:01:42]}  h6 {[%clk 0:02:18]} 18. Nh3 {[%clk 0:01:39]}  Rfc8 {[%clk 0:02:17]} 19. Nf4 {[%clk 0:01:36]}  Bxf4 {[%clk 0:02:03]} 20. exf4 {[%clk 0:01:37]}  Re8 {[%clk 0:01:41]} 21. Qd2 {[%clk 0:01:30]}  a5 {[%clk 0:01:31]} 22. Nd1 {[%clk 0:01:30]}  b4 {[%clk 0:01:19]} 23. Ne3 {[%clk 0:01:30]}  Be4 {[%clk 0:01:17]} 24. Rc5 {[%clk 0:01:18]}  Bxg2 {[%clk 0:01:15]} 25. Kxg2 {[%clk 0:01:19]}  Nb5 {[%clk 0:01:15]} 26. Nxd5 {[%clk 0:01:09]}  Qd8 {[%clk 0:01:14]} 27. Ne3 {[%clk 0:01:04]}  Qxd4 {[%clk 0:01:12]} 28. Qxd4 {[%clk 0:01:02]}  Nxd4 {[%clk 0:01:13]} 29. Rd1 {[%clk 0:01:01]}  Nb5 {[%clk 0:01:13]} 30. Rxc6 {[%clk 0:00:59]}  Nc3 {[%clk 0:01:13]} 31. Rd2 {[%clk 0:00:59]}  a4 {[%clk 0:01:11]} 32. Rb6 {[%clk 0:00:52]}  axb3 {[%clk 0:01:11]} 33. axb3 {[%clk 0:00:52]}  Ne4 {[%clk 0:01:11]} 34. Rc2 {[%clk 0:00:42]}  Rec8 {[%clk 0:01:04]} 35. Rxc8+ {[%clk 0:00:41]}  Rxc8 {[%clk 0:01:04]} 36. Rxb4 {[%clk 0:00:42]}  Nd2 {[%clk 0:00:54]} 37. Rb7 {[%clk 0:00:36]}  Ra8 {[%clk 0:00:53]} 38. Nc4 {[%clk 0:00:22]}  Ne4 {[%clk 0:00:50]} 39. Kf3 {[%clk 0:00:23]}  Nf6 {[%clk 0:00:48]} 40. Ne5 {[%clk 0:00:21]}  Ra3 {[%clk 0:00:39]} 41. Nxf7 {[%clk 0:00:20]}  h5 {[%clk 0:00:31]} 42. Ne5 {[%clk 0:00:19]}  Kh7 {[%clk 0:00:20]} 43. f5 {[%clk 0:00:19]}  Nd5 {[%clk 0:00:17]} 44. Ke4 {[%clk 0:00:17]}  Nf6+ {[%clk 0:00:17]} 45. Kf4 {[%clk 0:00:17]}  Ra2 {[%clk 0:00:17]} 46. f3 {[%clk 0:00:15]}  Re2 {[%clk 0:00:17]} 47. Ng6 {[%clk 0:00:13]}  Nd5+ {[%clk 0:00:17]} 48. Kg5 {[%clk 0:00:14]}  Re3 {[%clk 0:00:15]} 49. Rb8 {[%clk 0:00:13]}  Nf6 {[%clk 0:00:15]} 50. Rh8# {[%clk 0:00:12]} 1-0


[Site "https://www.chess.com"]

[Event "Titled Tuesday Blitz February 21 Early 2023"]
[White "Santos Flores, Alberto"]
[Black "Kamsky, Gata"]
[WhiteFideId "3601234"]
[BlackFideId "2000024"]
[WhiteElo "2164"]
[BlackElo "2665"]
[Result "0-1"]
[Round "02"]
[TimeControl "180+2"]
[Date "2023.02.21"]
[WhiteClock "0:00:19"]
[BlackClock "0:00:41"]

1. e4 {[%clk 0:02:57]}  e5 {[%clk 0:02:59]} 2. Nf3 {[%clk 0:02:57]}  Nc6 {[%clk 0:02:59]} 3. Bc4 {[%clk 0:02:58]}  Bc5 {[%clk 0:02:59]} 4. c3 {[%clk 0:02:58]}  Nf6 {[%clk 0:02:58]} 5. d3 {[%clk 0:02:58]}  d6 {[%clk 0:02:58]} 6. Nbd2 {[%clk 0:02:52]}  a5 {[%clk 0:02:56]} 7. O-O {[%clk 0:02:50]}  O-O {[%clk 0:02:39]} 8. h3 {[%clk 0:02:50]}  h6 {[%clk 0:02:26]} 9. Re1 {[%clk 0:02:49]}  Bd7 {[%clk 0:02:21]} 10. Nf1 {[%clk 0:02:49]}  a4 {[%clk 0:02:19]} 11. Ng3 {[%clk 0:02:42]}  Na5 {[%clk 0:02:15]} 12. d4 {[%clk 0:01:45]}  Nxc4 {[%clk 0:02:11]} 13. dxc5 {[%clk 0:01:44]}  dxc5 {[%clk 0:01:55]} 14. Nd2 {[%clk 0:01:33]}  Nxd2 {[%clk 0:01:47]} 15. Bxd2 {[%clk 0:01:34]}  Be6 {[%clk 0:01:45]} 16. Qe2 {[%clk 0:01:31]}  Nd7 {[%clk 0:01:26]} 17. Be3 {[%clk 0:01:29]}  Qf6 {[%clk 0:01:19]} 18. Red1 {[%clk 0:01:16]}  b6 {[%clk 0:01:18]} 19. Rd2 {[%clk 0:01:09]}  Qg6 {[%clk 0:01:15]} 20. Rad1 {[%clk 0:01:03]}  Nf6 {[%clk 0:01:15]} 21. a3 {[%clk 0:00:58]}  Nxe4 {[%clk 0:01:12]} 22. Nxe4 {[%clk 0:00:56]}  Qxe4 {[%clk 0:01:12]} 23. f3 {[%clk 0:00:44]}  Qg6 {[%clk 0:01:10]} 24. Kh1 {[%clk 0:00:43]}  Bb3 {[%clk 0:01:08]} 25. Re1 {[%clk 0:00:42]}  Rad8 {[%clk 0:01:08]} 26. Bg1 {[%clk 0:00:39]}  Rxd2 {[%clk 0:01:05]} 27. Qxd2 {[%clk 0:00:40]}  Qd6 {[%clk 0:01:04]} 28. Qe2 {[%clk 0:00:37]}  f6 {[%clk 0:01:04]} 29. Be3 {[%clk 0:00:35]}  Rd8 {[%clk 0:01:03]} 30. Kg1 {[%clk 0:00:34]}  Qd3 {[%clk 0:01:02]} 31. Qxd3 {[%clk 0:00:33]}  Rxd3 {[%clk 0:01:02]} 32. Kf2 {[%clk 0:00:34]}  Kf7 {[%clk 0:01:01]} 33. Re2 {[%clk 0:00:33]}  Rd1 {[%clk 0:00:56]} 34. Rd2 {[%clk 0:00:33]}  Rb1 {[%clk 0:00:55]} 35. g4 {[%clk 0:00:25]}  Ke7 {[%clk 0:00:53]} 36. h4 {[%clk 0:00:25]}  Bc4 {[%clk 0:00:50]} 37. h5 {[%clk 0:00:24]}  Be6 {[%clk 0:00:42]} 38. Kg2 {[%clk 0:00:22]}  c6 {[%clk 0:00:42]} 39. Kg3 {[%clk 0:00:20]}  Bd5 {[%clk 0:00:42]} 40. Kf2 {[%clk 0:00:20]}  Ke6 {[%clk 0:00:42]} 41. Kg2 {[%clk 0:00:20]}  f5 {[%clk 0:00:41]} 42. gxf5+ {[%clk 0:00:19]}  Kxf5 {[%clk 0:00:41]} 43. Kg3 {[%clk 0:00:19]}  Rh1 {[%clk 0:00:40]} 44. Rh2 {[%clk 0:00:17]}  Rxh2 {[%clk 0:00:40]} 45. Kxh2 {[%clk 0:00:18]}  Bxf3 {[%clk 0:00:41]} 46. Kg3 {[%clk 0:00:19]}  Bxh5 {[%clk 0:00:41]} 0-1


[Site "https://www.chess.com"]

[Event "Titled Tuesday Blitz February 21 Early 2023"]
[White "Lerch, Philipp"]
[Black "Maatman, Nick"]
[WhiteFideId "4654129"]
[BlackFideId "1040391"]
[WhiteElo "2305"]
[BlackElo "2345"]
[Result "0-1"]
[Round "02"]
[TimeControl "180+2"]
[Date "2023.02.21"]
[WhiteClock "0:00:13"]
[BlackClock "0:01:32"]

1. b3 {[%clk 0:02:56]}  e5 {[%clk 0:02:59]} 2. Bb2 {[%clk 0:02:55]}  Nc6 {[%clk 0:02:59]} 3. e3 {[%clk 0:02:55]}  d5 {[%clk 0:03:00]} 4. Bb5 {[%clk 0:02:54]}  Bd6 {[%clk 0:03:00]} 5. c4 {[%clk 0:02:48]}  a6 {[%clk 0:02:56]} 6. Bxc6+ {[%clk 0:02:44]}  bxc6 {[%clk 0:02:57]} 7. h3 {[%clk 0:02:34]}  Nf6 {[%clk 0:02:57]} 8. d3 {[%clk 0:02:34]}  O-O {[%clk 0:02:55]} 9. Ne2 {[%clk 0:02:34]}  Re8 {[%clk 0:02:55]} 10. Nd2 {[%clk 0:02:29]}  a5 {[%clk 0:02:55]} 11. a3 {[%clk 0:02:27]}  e4 {[%clk 0:02:51]} 12. d4 {[%clk 0:02:26]}  Nh5 {[%clk 0:02:37]} 13. c5 {[%clk 0:02:21]}  Bf8 {[%clk 0:02:37]} 14. b4 {[%clk 0:01:38]}  Qg5 {[%clk 0:02:14]} 15. g4 {[%clk 0:01:32]}  Nf6 {[%clk 0:02:13]} 16. Qb3 {[%clk 0:01:22]}  h5 {[%clk 0:02:09]} 17. gxh5 {[%clk 0:00:55]}  Ba6 {[%clk 0:02:06]} 18. Nf4 {[%clk 0:00:49]}  Nxh5 {[%clk 0:02:03]} 19. Nxh5 {[%clk 0:00:49]}  Qxh5 {[%clk 0:02:03]} 20. Qd1 {[%clk 0:00:46]}  Qh6 {[%clk 0:01:59]} 21. Qg4 {[%clk 0:00:45]}  Re6 {[%clk 0:01:58]} 22. O-O-O {[%clk 0:00:38]}  Bd3 {[%clk 0:01:48]} 23. Bc3 {[%clk 0:00:34]}  axb4 {[%clk 0:01:45]} 24. Bxb4 {[%clk 0:00:35]}  Be7 {[%clk 0:01:42]} 25. Rdg1 {[%clk 0:00:32]}  Bh4 {[%clk 0:01:40]} 26. Qf5 {[%clk 0:00:12]}  Rf6 {[%clk 0:01:37]} 27. Qe5 {[%clk 0:00:13]}  Bxf2 {[%clk 0:01:35]} 28. Rg4 {[%clk 0:00:13]}  Bxe3 {[%clk 0:01:32]} 0-1


[Site "https://www.chess.com"]

[Event "Titled Tuesday Blitz February 21 Early 2023"]
[White "Topalov, Aleksandar"]
[Black "Vaibhav Jayant Raut"]
[WhiteFideId "925659"]
[BlackFideId "5089034"]
[WhiteElo "2233"]
[BlackElo "2237"]
[Result "0-1"]
[Round "02"]
[TimeControl "180+2"]
[Date "2023.02.21"]
[WhiteClock "0:00:01"]
[BlackClock "0:00:21"]

1. b3 {[%clk 0:02:32]}  Nf6 {[%clk 0:02:58]} 2. Bb2 {[%clk 0:02:32]}  d5 {[%clk 0:02:59]} 3. Nf3 {[%clk 0:02:31]}  g6 {[%clk 0:02:57]} 4. c4 {[%clk 0:02:30]}  c6 {[%clk 0:02:55]} 5. g3 {[%clk 0:02:27]}  Bg7 {[%clk 0:02:55]} 6. Bg2 {[%clk 0:02:27]}  O-O {[%clk 0:02:55]} 7. O-O {[%clk 0:02:27]}  Bf5 {[%clk 0:02:55]} 8. d3 {[%clk 0:02:27]}  a5 {[%clk 0:02:53]} 9. a3 {[%clk 0:02:24]}  Na6 {[%clk 0:02:53]} 10. Nbd2 {[%clk 0:02:24]}  Qb6 {[%clk 0:02:52]} 11. Qc2 {[%clk 0:02:16]}  Rac8 {[%clk 0:02:51]} 12. h3 {[%clk 0:02:10]}  Rfd8 {[%clk 0:02:50]} 13. Rfc1 {[%clk 0:02:09]}  h6 {[%clk 0:02:48]} 14. c5 {[%clk 0:01:54]}  Qc7 {[%clk 0:02:39]} 15. Be5 {[%clk 0:01:54]}  Qd7 {[%clk 0:02:38]} 16. g4 {[%clk 0:01:54]}  Be6 {[%clk 0:02:37]} 17. Nd4 {[%clk 0:01:54]}  h5 {[%clk 0:02:26]} 18. g5 {[%clk 0:01:37]}  Ne8 {[%clk 0:02:13]} 19. Bxg7 {[%clk 0:01:31]}  Nxg7 {[%clk 0:02:14]} 20. Kh2 {[%clk 0:01:27]}  Qc7+ {[%clk 0:02:04]} 21. Kh1 {[%clk 0:01:25]}  Qf4 {[%clk 0:01:59]} 22. N2f3 {[%clk 0:01:22]}  Bf5 {[%clk 0:01:51]} 23. Qd2 {[%clk 0:01:15]}  Qxd2 {[%clk 0:01:40]} 24. Nxd2 {[%clk 0:01:15]}  e5 {[%clk 0:01:41]} 25. Nxf5 {[%clk 0:01:07]}  Nxf5 {[%clk 0:01:42]} 26. e3 {[%clk 0:01:07]}  Ng7 {[%clk 0:01:34]} 27. h4 {[%clk 0:01:00]}  Rc7 {[%clk 0:01:31]} 28. Bh3 {[%clk 0:01:00]}  Rf8 {[%clk 0:01:29]} 29. Nf3 {[%clk 0:00:45]}  Re7 {[%clk 0:01:28]} 30. d4 {[%clk 0:00:39]}  exd4 {[%clk 0:01:26]} 31. Nxd4 {[%clk 0:00:37]}  f6 {[%clk 0:01:25]} 32. gxf6 {[%clk 0:00:18]}  Rxf6 {[%clk 0:01:26]} 33. Kg2 {[%clk 0:00:17]}  Ref7 {[%clk 0:01:12]} 34. f4 {[%clk 0:00:17]}  Re7 {[%clk 0:01:11]} 35. Rc3 {[%clk 0:00:17]}  Rf8 {[%clk 0:01:11]} 36. Rb1 {[%clk 0:00:14]}  Ne8 {[%clk 0:01:09]} 37. b4 {[%clk 0:00:12]}  axb4 {[%clk 0:01:09]} 38. axb4 {[%clk 0:00:12]}  Nf6 {[%clk 0:01:05]} 39. b5 {[%clk 0:00:11]}  cxb5 {[%clk 0:00:59]} 40. Rxb5 {[%clk 0:00:10]}  Ne4 {[%clk 0:00:59]} 41. Rc2 {[%clk 0:00:10]}  Rf6 {[%clk 0:00:53]} 42. Be6+ {[%clk 0:00:08]}  Rfxe6 {[%clk 0:00:51]} 43. Nxe6 {[%clk 0:00:09]}  Rxe6 {[%clk 0:00:52]} 44. Rxb7 {[%clk 0:00:09]}  Naxc5 {[%clk 0:00:50]} 45. Rb8+ {[%clk 0:00:07]}  Kf7 {[%clk 0:00:49]} 46. Rd8 {[%clk 0:00:08]}  Na6 {[%clk 0:00:35]} 47. Rxd5 {[%clk 0:00:07]}  Nb4 {[%clk 0:00:30]} 48. Rd7+ {[%clk 0:00:06]}  Kf6 {[%clk 0:00:29]} 49. Rcc7 {[%clk 0:00:05]}  Kf5 {[%clk 0:00:26]} 50. Kh3 {[%clk 0:00:05]}  Nf6 {[%clk 0:00:24]} 51. Rf7 {[%clk 0:00:02]}  Nd5 {[%clk 0:00:21]} 52. Rc5 {[%clk 0:00:01]}  Rxe3+ {[%clk 0:00:21]} 53. Kg2 {[%clk 0:00:01]}  Kg4 {[%clk 0:00:21]} 0-1


[Site "https://www.chess.com"]

[Event "Titled Tuesday Blitz February 21 Early 2023"]
[White "Sadubayev, Airat"]
[Black "Kalajzic, Ivan"]
[WhiteFideId "13713264"]
[BlackFideId "14506378"]
[WhiteElo "2320"]
[BlackElo "2062"]
[Result "1-0"]
[Round "02"]
[TimeControl "180+2"]
[Date "2023.02.21"]
[WhiteClock "0:00:10"]
[BlackClock "0:00:02"]

1. d4 {[%clk 0:02:59]}  Nc6 {[%clk 0:02:58]} 2. e4 {[%clk 0:02:57]}  e5 {[%clk 0:02:58]} 3. Nf3 {[%clk 0:02:47]}  exd4 {[%clk 0:02:58]} 4. Nxd4 {[%clk 0:02:47]}  Nf6 {[%clk 0:02:57]} 5. Nc3 {[%clk 0:02:45]}  Bb4 {[%clk 0:02:56]} 6. Nxc6 {[%clk 0:02:45]}  bxc6 {[%clk 0:02:56]} 7. Bd3 {[%clk 0:02:46]}  d5 {[%clk 0:02:57]} 8. exd5 {[%clk 0:02:46]}  cxd5 {[%clk 0:02:57]} 9. O-O {[%clk 0:02:46]}  O-O {[%clk 0:02:57]} 10. h3 {[%clk 0:02:44]}  c6 {[%clk 0:02:57]} 11. Qf3 {[%clk 0:02:43]}  Bd6 {[%clk 0:02:55]} 12. Bg5 {[%clk 0:02:41]}  Rb8 {[%clk 0:02:55]} 13. Rab1 {[%clk 0:02:37]}  Be5 {[%clk 0:02:55]} 14. Rfe1 {[%clk 0:02:31]}  Qd6 {[%clk 0:02:52]} 15. Na4 {[%clk 0:02:27]}  h6 {[%clk 0:02:44]} 16. Be3 {[%clk 0:02:21]}  d4 {[%clk 0:02:21]} 17. Bd2 {[%clk 0:02:20]}  c5 {[%clk 0:02:14]} 18. b3 {[%clk 0:01:56]}  Bb7 {[%clk 0:02:12]} 19. Qd1 {[%clk 0:01:55]}  Bh2+ {[%clk 0:02:08]} 20. Kh1 {[%clk 0:01:50]}  Rfe8 {[%clk 0:02:01]} 21. Nb2 {[%clk 0:01:42]}  Bf4 {[%clk 0:01:45]} 22. Nc4 {[%clk 0:01:32]}  Qc7 {[%clk 0:01:46]} 23. Bxf4 {[%clk 0:01:27]}  Qxf4 {[%clk 0:01:47]} 24. Qd2 {[%clk 0:01:26]}  Qh4 {[%clk 0:01:34]} 25. Kg1 {[%clk 0:01:24]}  Nd5 {[%clk 0:01:26]} 26. Nd6 {[%clk 0:01:15]}  Rxe1+ {[%clk 0:01:09]} 27. Rxe1 {[%clk 0:01:14]}  Bc6 {[%clk 0:01:09]} 28. Nf5 {[%clk 0:01:10]}  Qf6 {[%clk 0:00:51]} 29. Be4 {[%clk 0:01:03]}  Kh8 {[%clk 0:00:38]} 30. Ng3 {[%clk 0:00:59]}  Nb4 {[%clk 0:00:35]} 31. a3 {[%clk 0:00:56]}  Nd5 {[%clk 0:00:29]} 32. Qa5 {[%clk 0:00:55]}  Nf4 {[%clk 0:00:21]} 33. Qxc5 {[%clk 0:00:41]}  Bxe4 {[%clk 0:00:18]} 34. Rxe4 {[%clk 0:00:40]}  Ne6 {[%clk 0:00:14]} 35. Qe5 {[%clk 0:00:35]}  Rd8 {[%clk 0:00:14]} 36. Qxf6 {[%clk 0:00:32]}  gxf6 {[%clk 0:00:15]} 37. Kf1 {[%clk 0:00:23]}  d3 {[%clk 0:00:15]} 38. cxd3 {[%clk 0:00:22]}  Rxd3 {[%clk 0:00:16]} 39. Re3 {[%clk 0:00:22]}  Rd2 {[%clk 0:00:17]} 40. Nf5 {[%clk 0:00:19]}  Nf4 {[%clk 0:00:16]} 41. g3 {[%clk 0:00:17]}  Nd5 {[%clk 0:00:12]} 42. Re2 {[%clk 0:00:14]}  Rd1+ {[%clk 0:00:11]} 43. Kg2 {[%clk 0:00:13]}  Kh7 {[%clk 0:00:12]} 44. Rb2 {[%clk 0:00:12]}  Ra1 {[%clk 0:00:11]} 45. a4 {[%clk 0:00:11]}  Nc3 {[%clk 0:00:11]} 46. Ne3 {[%clk 0:00:11]}  Ne2 {[%clk 0:00:10]} 47. Rxe2 {[%clk 0:00:10]}  Kg6 {[%clk 0:00:09]} 48. Rb2 {[%clk 0:00:11]}  Rc1 {[%clk 0:00:09]} 49. h4 {[%clk 0:00:11]}  h5 {[%clk 0:00:09]} 50. Kf3 {[%clk 0:00:11]}  Rc3 {[%clk 0:00:08]} 51. b4 {[%clk 0:00:11]}  f5 {[%clk 0:00:08]} 52. a5 {[%clk 0:00:12]}  f4 {[%clk 0:00:08]} 53. gxf4 {[%clk 0:00:11]}  f5 {[%clk 0:00:08]} 54. b5 {[%clk 0:00:12]}  Rc5 {[%clk 0:00:07]} 55. b6 {[%clk 0:00:10]}  axb6 {[%clk 0:00:08]} 56. axb6 {[%clk 0:00:11]}  Rc8 {[%clk 0:00:08]} 57. b7 {[%clk 0:00:11]}  Rb8 {[%clk 0:00:09]} 58. Nc4 {[%clk 0:00:11]}  Kf6 {[%clk 0:00:09]} 59. Na5 {[%clk 0:00:12]}  Ke6 {[%clk 0:00:06]} 60. Nc6 {[%clk 0:00:12]}  Re8 {[%clk 0:00:03]} 61. Re2+ {[%clk 0:00:11]}  Kd6 {[%clk 0:00:03]} 62. Rxe8 {[%clk 0:00:10]}  Kxc6 {[%clk 0:00:02]} 63. b8=Q {[%clk 0:00:10]}  Kc5 {[%clk 0:00:02]} 64. Qe5+ {[%clk 0:00:10]} 1-0


[Site "https://www.chess.com"]

[Event "Titled Tuesday Blitz February 21 Early 2023"]
[White "Aldokhin, Ivan"]
[Black "Shtompel, Yuriy"]
[WhiteFideId "24115720"]
[BlackFideId "14168278"]
[WhiteElo "2413"]
[BlackElo "1938"]
[Result "1-0"]
[Round "02"]
[TimeControl "180+2"]
[Date "2023.02.21"]
[WhiteClock "0:00:50"]
[BlackClock "0:00:11"]

1. e4 {[%clk 0:02:58]}  c5 {[%clk 0:02:58]} 2. Nf3 {[%clk 0:02:58]}  d6 {[%clk 0:02:58]} 3. d4 {[%clk 0:02:59]}  cxd4 {[%clk 0:02:58]} 4. Nxd4 {[%clk 0:03:00]}  Nf6 {[%clk 0:02:59]} 5. Nc3 {[%clk 0:03:00]}  a6 {[%clk 0:02:59]} 6. Bc4 {[%clk 0:03:01]}  e6 {[%clk 0:02:59]} 7. Bb3 {[%clk 0:03:01]}  Nbd7 {[%clk 0:02:59]} 8. O-O {[%clk 0:03:01]}  Nc5 {[%clk 0:02:59]} 9. Qf3 {[%clk 0:03:02]}  Qc7 {[%clk 0:02:56]} 10. Re1 {[%clk 0:03:01]}  Be7 {[%clk 0:02:32]} 11. Bg5 {[%clk 0:02:49]}  Nxb3 {[%clk 0:02:26]} 12. axb3 {[%clk 0:02:48]}  O-O {[%clk 0:02:25]} 13. Qg3 {[%clk 0:02:32]}  Kh8 {[%clk 0:02:16]} 14. Qh4 {[%clk 0:02:30]}  h6 {[%clk 0:01:51]} 15. Re3 {[%clk 0:02:16]}  Qc5 {[%clk 0:01:37]} 16. Bxh6 {[%clk 0:02:04]}  Qh5 {[%clk 0:01:05]} 17. Qxh5 {[%clk 0:01:46]}  Nxh5 {[%clk 0:01:05]} 18. Rh3 {[%clk 0:01:46]}  gxh6 {[%clk 0:01:01]} 19. Rxh5 {[%clk 0:01:46]}  Kg7 {[%clk 0:01:01]} 20. Rd1 {[%clk 0:01:38]}  Bd7 {[%clk 0:00:46]} 21. Rd3 {[%clk 0:01:38]}  Rac8 {[%clk 0:00:40]} 22. Rg3+ {[%clk 0:01:37]}  Kh7 {[%clk 0:00:40]} 23. Rgh3 {[%clk 0:01:37]}  Bf6 {[%clk 0:00:32]} 24. Rxh6+ {[%clk 0:01:35]}  Kg7 {[%clk 0:00:32]} 25. Nde2 {[%clk 0:01:23]}  e5 {[%clk 0:00:27]} 26. Rh7+ {[%clk 0:01:18]}  Kg8 {[%clk 0:00:23]} 27. Nd5 {[%clk 0:01:13]}  Bg5 {[%clk 0:00:16]} 28. Rh8+ {[%clk 0:01:01]}  Kg7 {[%clk 0:00:16]} 29. Rxf8 {[%clk 0:01:01]}  Rxf8 {[%clk 0:00:15]} 30. Rg3 {[%clk 0:01:01]}  f6 {[%clk 0:00:14]} 31. h4 {[%clk 0:01:00]}  Rc8 {[%clk 0:00:13]} 32. hxg5 {[%clk 0:01:00]}  Rxc2 {[%clk 0:00:13]} 33. gxf6+ {[%clk 0:01:00]}  Kf7 {[%clk 0:00:14]} 34. Rg7+ {[%clk 0:01:00]}  Kf8 {[%clk 0:00:15]} 35. Nec3 {[%clk 0:00:55]}  Bb5 {[%clk 0:00:14]} 36. Nxb5 {[%clk 0:00:52]}  axb5 {[%clk 0:00:11]} 37. Rxb7 {[%clk 0:00:52]}  Rxb2 {[%clk 0:00:11]} 38. g4 {[%clk 0:00:51]}  Rb1+ {[%clk 0:00:12]} 39. Kg2 {[%clk 0:00:51]}  Rxb3 {[%clk 0:00:12]} 40. g5 {[%clk 0:00:51]}  Ra3 {[%clk 0:00:11]} 41. g6 {[%clk 0:00:50]} 1-0


[Site "https://www.chess.com"]